[Event "Titled Tuesday Blitz November 08 Early 2022"]
[White "Rose, Felix"]
[Black "Bilan, Danila"]
[WhiteFideId "5105722"]
[BlackFideId "24161918"]
[WhiteElo "2039"]
[BlackElo "2173"]
[Result "0-1"]
[Round "05"]
[TimeControl "180+1"]
[Date "2022.11.09"]
[WhiteClock "0:00:15"]
[BlackClock "0:00:12"]

1. e4 {[%clk 0:02:59]}  c6 {[%clk 0:02:59]} 2. d4 {[%clk 0:02:59]}  d5 {[%clk 0:03:00]} 3. e5 {[%clk 0:02:59]}  c5 {[%clk 0:03:01]} 4. dxc5 {[%clk 0:02:59]}  e6 {[%clk 0:02:59]} 5. a3 {[%clk 0:02:59]}  Bxc5 {[%clk 0:02:59]} 6. b4 {[%clk 0:02:57]}  Bb6 {[%clk 0:02:56]} 7. Bb2 {[%clk 0:02:55]}  Ne7 {[%clk 0:02:53]} 8. Bd3 {[%clk 0:02:53]}  a5 {[%clk 0:02:47]} 9. b5 {[%clk 0:02:48]}  Nd7 {[%clk 0:02:47]} 10. Nf3 {[%clk 0:02:47]}  Nc5 {[%clk 0:02:46]} 11. O-O {[%clk 0:02:48]}  Nxd3 {[%clk 0:02:46]} 12. Qxd3 {[%clk 0:02:48]}  Bd7 {[%clk 0:02:44]} 13. Nbd2 {[%clk 0:02:45]}  Rc8 {[%clk 0:02:37]} 14. a4 {[%clk 0:02:43]}  Ng6 {[%clk 0:02:30]} 15. g3 {[%clk 0:02:36]}  O-O {[%clk 0:02:21]} 16. c4 {[%clk 0:02:31]}  Bc5 {[%clk 0:01:45]} 17. cxd5 {[%clk 0:02:23]}  exd5 {[%clk 0:01:45]} 18. Qxd5 {[%clk 0:02:23]}  b6 {[%clk 0:01:36]} 19. Rac1 {[%clk 0:02:10]}  Bg4 {[%clk 0:01:20]} 20. Qe4 {[%clk 0:02:02]}  Qd7 {[%clk 0:01:12]} 21. Nc4 {[%clk 0:01:27]}  Bf5 {[%clk 0:01:03]} 22. Qe1 {[%clk 0:01:06]}  Bd3 {[%clk 0:00:54]} 23. Qd2 {[%clk 0:00:59]}  Qf5 {[%clk 0:00:48]} 24. Ne3 {[%clk 0:00:43]}  Bxe3 {[%clk 0:00:35]} 25. Qxe3 {[%clk 0:00:43]}  Bxf1 {[%clk 0:00:33]} 26. Rxf1 {[%clk 0:00:41]}  Qc2 {[%clk 0:00:29]} 27. Bd4 {[%clk 0:00:39]}  Qxa4 {[%clk 0:00:27]} 28. Bxb6 {[%clk 0:00:40]}  Qxb5 {[%clk 0:00:28]} 29. e6 {[%clk 0:00:35]}  Rfe8 {[%clk 0:00:19]} 30. exf7+ {[%clk 0:00:30]}  Kxf7 {[%clk 0:00:20]} 31. Ng5+ {[%clk 0:00:28]}  Kg8 {[%clk 0:00:20]} 32. Qd2 {[%clk 0:00:19]}  h6 {[%clk 0:00:13]} 33. Qa2+ {[%clk 0:00:17]}  Qc4 {[%clk 0:00:11]} 34. Qxc4+ {[%clk 0:00:17]}  Rxc4 {[%clk 0:00:12]} 35. Nf3 {[%clk 0:00:16]}  a4 {[%clk 0:00:12]} 36. Ra1 {[%clk 0:00:16]}  Rec8 {[%clk 0:00:11]} 37. Kg2 {[%clk 0:00:15]}  Ra8 {[%clk 0:00:11]} 38. Be3 {[%clk 0:00:14]}  a3 {[%clk 0:00:11]} 39. Ra2 {[%clk 0:00:15]}  Rb4 {[%clk 0:00:10]} 40. Bc1 {[%clk 0:00:15]}  Rba4 {[%clk 0:00:09]} 41. Nd2 {[%clk 0:00:14]}  Ne5 {[%clk 0:00:08]} 42. Nb1 {[%clk 0:00:15]}  Nd3 {[%clk 0:00:07]} 43. Be3 {[%clk 0:00:09]}  Nb4 {[%clk 0:00:05]} 44. Ra1 {[%clk 0:00:09]}  a2 {[%clk 0:00:05]} 45. Nc3 {[%clk 0:00:08]}  Nc2 {[%clk 0:00:05]} 46. Nxa4 {[%clk 0:00:08]}  Rxa4 {[%clk 0:00:03]} 47. Rxa2 {[%clk 0:00:06]}  Rxa2 {[%clk 0:00:03]} 48. Bd4 {[%clk 0:00:07]}  Nxd4 {[%clk 0:00:04]} 49. g4 {[%clk 0:00:07]}  Ra4 {[%clk 0:00:04]} 50. Kg3 {[%clk 0:00:07]}  Ne6 {[%clk 0:00:04]} 51. f3 {[%clk 0:00:08]}  Ra3 {[%clk 0:00:05]} 52. h4 {[%clk 0:00:09]}  Nd4 {[%clk 0:00:06]} 53. g5 {[%clk 0:00:10]}  hxg5 {[%clk 0:00:06]} 54. hxg5 {[%clk 0:00:11]}  Nxf3 {[%clk 0:00:07]} 55. Kg4 {[%clk 0:00:12]}  Nxg5 {[%clk 0:00:07]} 56. Kh5 {[%clk 0:00:11]}  Ra6 {[%clk 0:00:08]} 57. Kg4 {[%clk 0:00:11]}  Nf7 {[%clk 0:00:08]} 58. Kf5 {[%clk 0:00:12]}  Rf6+ {[%clk 0:00:09]} 59. Kg4 {[%clk 0:00:12]}  g5 {[%clk 0:00:09]} 60. Kh5 {[%clk 0:00:13]}  Kg7 {[%clk 0:00:10]} 61. Kg4 {[%clk 0:00:13]}  Kg6 {[%clk 0:00:11]} 62. Kg3 {[%clk 0:00:14]}  Rf4 {[%clk 0:00:12]} 63. Kh3 {[%clk 0:00:14]}  Kf5 {[%clk 0:00:13]} 64. Kg3 {[%clk 0:00:14]}  Ne5 {[%clk 0:00:13]} 65. Kg2 {[%clk 0:00:14]}  g4 {[%clk 0:00:14]} 66. Kg3 {[%clk 0:00:15]}  Rf3+ {[%clk 0:00:14]} 67. Kg2 {[%clk 0:00:15]}  g3 {[%clk 0:00:13]} 68. Kh3 {[%clk 0:00:15]}  Kf4 {[%clk 0:00:12]} 69. Kg2 {[%clk 0:00:15]}  Rf2+ {[%clk 0:00:12]} 70. Kh1 {[%clk 0:00:15]}  Kg4 {[%clk 0:00:10]} 71. Kg1 {[%clk 0:00:16]}  Nf3+ {[%clk 0:00:11]} 72. Kh1 {[%clk 0:00:15]}  g2# {[%clk 0:00:12]} 0-1


[Site "https://www.chess.com"]

[Event "Titled Tuesday Blitz November 08 Early 2022"]
[White "Rosh Jain"]
[Black "Makridis, Dimitrios"]
[WhiteFideId "25789465"]
[BlackFideId "25864475"]
[WhiteElo "2233"]
[BlackElo "2272"]
[Result "0-1"]
[Round "05"]
[TimeControl "180+1"]
[Date "2022.11.09"]
[WhiteClock "0:00:04"]
[BlackClock "0:00:33"]

1. e4 {[%clk 0:02:57]}  c5 {[%clk 0:02:51]} 2. Nf3 {[%clk 0:02:56]}  Nf6 {[%clk 0:02:50]} 3. Nc3 {[%clk 0:02:52]}  d6 {[%clk 0:02:49]} 4. d4 {[%clk 0:02:51]}  cxd4 {[%clk 0:02:49]} 5. Nxd4 {[%clk 0:02:52]}  Nc6 {[%clk 0:02:50]} 6. Bc4 {[%clk 0:02:51]}  Bd7 {[%clk 0:02:48]} 7. O-O {[%clk 0:02:50]}  e6 {[%clk 0:02:46]} 8. Bg5 {[%clk 0:02:47]}  Be7 {[%clk 0:02:43]} 9. Kh1 {[%clk 0:02:42]}  a6 {[%clk 0:02:43]} 10. Bb3 {[%clk 0:02:41]}  O-O {[%clk 0:02:43]} 11. f4 {[%clk 0:02:40]}  Rc8 {[%clk 0:02:40]} 12. Qd2 {[%clk 0:02:39]}  b5 {[%clk 0:02:38]} 13. a3 {[%clk 0:02:35]}  Na5 {[%clk 0:02:36]} 14. Rad1 {[%clk 0:02:25]}  Nxb3 {[%clk 0:02:25]} 15. Nxb3 {[%clk 0:02:22]}  Rxc3 {[%clk 0:02:25]} 16. Qxc3 {[%clk 0:02:11]}  Nxe4 {[%clk 0:02:25]} 17. Qf3 {[%clk 0:02:07]}  Nxg5 {[%clk 0:02:20]} 18. fxg5 {[%clk 0:02:07]}  Qc7 {[%clk 0:02:16]} 19. c3 {[%clk 0:01:51]}  Bxg5 {[%clk 0:02:11]} 20. Qg3 {[%clk 0:01:50]}  Be7 {[%clk 0:02:11]} 21. Nd2 {[%clk 0:01:50]}  Bc6 {[%clk 0:02:06]} 22. Nf3 {[%clk 0:01:49]}  Qb7 {[%clk 0:02:02]} 23. Nd4 {[%clk 0:01:48]}  Be4 {[%clk 0:01:57]} 24. Qh3 {[%clk 0:01:43]}  Bf6 {[%clk 0:01:48]} 25. Nf3 {[%clk 0:01:19]}  Rd8 {[%clk 0:01:38]} 26. Qg3 {[%clk 0:01:05]}  d5 {[%clk 0:01:29]} 27. Nd2 {[%clk 0:01:02]}  Bg6 {[%clk 0:01:29]} 28. h4 {[%clk 0:00:55]}  Qe7 {[%clk 0:01:25]} 29. Nf3 {[%clk 0:00:50]}  h6 {[%clk 0:01:25]} 30. Rfe1 {[%clk 0:00:45]}  Bh5 {[%clk 0:01:14]} 31. Re3 {[%clk 0:00:38]}  Bxh4 {[%clk 0:01:08]} 32. Qh3 {[%clk 0:00:32]}  Bxf3 {[%clk 0:01:02]} 33. Qxf3 {[%clk 0:00:25]}  Bg5 {[%clk 0:00:58]} 34. Re2 {[%clk 0:00:25]}  Qc7 {[%clk 0:00:55]} 35. Rd4 {[%clk 0:00:22]}  a5 {[%clk 0:00:45]} 36. a4 {[%clk 0:00:22]}  bxa4 {[%clk 0:00:38]} 37. Rxa4 {[%clk 0:00:23]}  Rb8 {[%clk 0:00:39]} 38. b4 {[%clk 0:00:22]}  axb4 {[%clk 0:00:37]} 39. Rxb4 {[%clk 0:00:21]}  Rxb4 {[%clk 0:00:37]} 40. cxb4 {[%clk 0:00:22]}  Qc4 {[%clk 0:00:37]} 41. Rf2 {[%clk 0:00:09]}  Bf6 {[%clk 0:00:38]} 42. Qa3 {[%clk 0:00:05]}  Qh4+ {[%clk 0:00:36]} 43. Kg1 {[%clk 0:00:04]}  Bd4 {[%clk 0:00:36]} 44. g3 {[%clk 0:00:04]}  Bxf2+ {[%clk 0:00:35]} 45. Kxf2 {[%clk 0:00:05]}  Qd4+ {[%clk 0:00:36]} 46. Kg2 {[%clk 0:00:04]}  Qe4+ {[%clk 0:00:36]} 47. Kh3 {[%clk 0:00:04]}  Qh1+ {[%clk 0:00:33]} 0-1


[Site "https://www.chess.com"]

[Event "Titled Tuesday Blitz November 08 Early 2022"]
[White "Rustemov, Alexander"]
[Black "Sreyas Payyappat"]
[WhiteFideId "4119002"]
[BlackFideId "46674969"]
[WhiteElo "2652"]
[BlackElo "2083"]
[Result "1-0"]
[Round "05"]
[TimeControl "180+1"]
[Date "2022.11.09"]
[WhiteClock "0:00:33"]
[BlackClock "0:00:05"]

1. d4 {[%clk 0:02:55]}  Nf6 {[%clk 0:02:59]} 2. c4 {[%clk 0:02:55]}  c5 {[%clk 0:02:58]} 3. d5 {[%clk 0:02:53]}  e6 {[%clk 0:02:58]} 4. Nc3 {[%clk 0:02:50]}  exd5 {[%clk 0:02:59]} 5. cxd5 {[%clk 0:02:51]}  d6 {[%clk 0:02:59]} 6. e4 {[%clk 0:02:52]}  g6 {[%clk 0:02:59]} 7. h3 {[%clk 0:02:52]}  Bg7 {[%clk 0:02:56]} 8. Bd3 {[%clk 0:02:52]}  O-O {[%clk 0:02:57]} 9. Nf3 {[%clk 0:02:53]}  b5 {[%clk 0:02:53]} 10. Bxb5 {[%clk 0:02:53]}  Nxe4 {[%clk 0:02:51]} 11. Nxe4 {[%clk 0:02:53]}  Qa5+ {[%clk 0:02:50]} 12. Nfd2 {[%clk 0:02:54]}  Qxb5 {[%clk 0:02:50]} 13. Nxd6 {[%clk 0:02:55]}  Qa6 {[%clk 0:02:43]} 14. N2c4 {[%clk 0:02:55]}  Nd7 {[%clk 0:02:22]} 15. O-O {[%clk 0:02:55]}  Ne5 {[%clk 0:02:21]} 16. Nxe5 {[%clk 0:02:53]}  Bxe5 {[%clk 0:02:22]} 17. Nxc8 {[%clk 0:02:53]}  Raxc8 {[%clk 0:02:21]} 18. Re1 {[%clk 0:02:53]}  Qd6 {[%clk 0:02:19]} 19. Bg5 {[%clk 0:02:40]}  Rfe8 {[%clk 0:02:07]} 20. Qd2 {[%clk 0:02:33]}  Bd4 {[%clk 0:02:06]} 21. Rad1 {[%clk 0:01:57]}  Qxd5 {[%clk 0:02:03]} 22. b3 {[%clk 0:01:57]}  Qf5 {[%clk 0:01:50]} 23. Be3 {[%clk 0:01:53]}  Red8 {[%clk 0:01:32]} 24. Bxd4 {[%clk 0:01:46]}  cxd4 {[%clk 0:00:57]} 25. Qd3 {[%clk 0:01:29]}  Qf6 {[%clk 0:00:44]} 26. Re2 {[%clk 0:01:17]}  Rc3 {[%clk 0:00:41]} 27. Qe4 {[%clk 0:01:16]}  d3 {[%clk 0:00:36]} 28. Red2 {[%clk 0:01:16]}  Qd6 {[%clk 0:00:20]} 29. g3 {[%clk 0:01:11]}  a6 {[%clk 0:00:18]} 30. Kg2 {[%clk 0:01:11]}  f5 {[%clk 0:00:18]} 31. Qe3 {[%clk 0:01:08]}  Qd5+ {[%clk 0:00:17]} 32. Qf3 {[%clk 0:01:08]}  Qd6 {[%clk 0:00:17]} 33. h4 {[%clk 0:01:06]}  Kf7 {[%clk 0:00:17]} 34. h5 {[%clk 0:01:06]}  Rd7 {[%clk 0:00:17]} 35. hxg6+ {[%clk 0:01:05]}  hxg6 {[%clk 0:00:18]} 36. Rh1 {[%clk 0:01:06]}  Qd5 {[%clk 0:00:17]} 37. Qxd5+ {[%clk 0:00:59]}  Rxd5 {[%clk 0:00:18]} 38. Rhd1 {[%clk 0:01:00]}  Kf6 {[%clk 0:00:13]} 39. Kf3 {[%clk 0:01:00]}  Ke5 {[%clk 0:00:10]} 40. Ke3 {[%clk 0:01:01]}  g5 {[%clk 0:00:07]} 41. f4+ {[%clk 0:01:00]}  gxf4+ {[%clk 0:00:08]} 42. gxf4+ {[%clk 0:01:01]}  Ke6 {[%clk 0:00:07]} 43. Rxd3 {[%clk 0:01:01]}  Rdxd3+ {[%clk 0:00:07]} 44. Rxd3 {[%clk 0:01:01]}  Rc2 {[%clk 0:00:08]} 45. a3 {[%clk 0:00:55]}  Ra2 {[%clk 0:00:06]} 46. b4 {[%clk 0:00:54]}  Rh2 {[%clk 0:00:07]} 47. Rc3 {[%clk 0:00:49]}  Rh3+ {[%clk 0:00:07]} 48. Kd4 {[%clk 0:00:49]}  Rh4 {[%clk 0:00:06]} 49. Rc6+ {[%clk 0:00:49]}  Kd7 {[%clk 0:00:06]} 50. Rxa6 {[%clk 0:00:48]}  Rxf4+ {[%clk 0:00:07]} 51. Kc5 {[%clk 0:00:46]}  Rf3 {[%clk 0:00:07]} 52. a4 {[%clk 0:00:44]}  f4 {[%clk 0:00:06]} 53. Ra7+ {[%clk 0:00:40]}  Kc8 {[%clk 0:00:06]} 54. Rf7 {[%clk 0:00:39]}  Rc3+ {[%clk 0:00:05]} 55. Kb6 {[%clk 0:00:38]}  f3 {[%clk 0:00:05]} 56. b5 {[%clk 0:00:38]}  Ra3 {[%clk 0:00:04]} 57. a5 {[%clk 0:00:38]}  Kd8 {[%clk 0:00:04]} 58. a6 {[%clk 0:00:37]}  Ke8 {[%clk 0:00:04]} 59. Rf4 {[%clk 0:00:36]}  Kd7 {[%clk 0:00:05]} 60. Kb7 {[%clk 0:00:35]}  Ra5 {[%clk 0:00:05]} 61. b6 {[%clk 0:00:34]}  Ra3 {[%clk 0:00:03]} 62. a7 {[%clk 0:00:34]}  Kd6 {[%clk 0:00:03]} 63. a8=Q {[%clk 0:00:33]}  Rxa8 {[%clk 0:00:04]} 64. Kxa8 {[%clk 0:00:33]}  Ke5 {[%clk 0:00:05]} 1-0


[Site "https://www.chess.com"]

[Event "Titled Tuesday Blitz November 08 Early 2022"]
[White "Safin, Robert"]
[Black "Kravtsiv, Martyn"]
[WhiteFideId "34189120"]
[BlackFideId "14113147"]
[WhiteElo "2253"]
[BlackElo "2694"]
[Result "1-0"]
[Round "05"]
[TimeControl "180+1"]
[Date "2022.11.09"]
[WhiteClock "0:01:31"]
[BlackClock "0:00:51"]

1. d4 {[%clk 0:03:00]}  d5 {[%clk 0:02:58]} 2. c4 {[%clk 0:02:59]}  e6 {[%clk 0:02:58]} 3. Nf3 {[%clk 0:02:59]}  Nf6 {[%clk 0:02:58]} 4. g3 {[%clk 0:03:00]}  Bb4+ {[%clk 0:02:56]} 5. Bd2 {[%clk 0:03:00]}  Be7 {[%clk 0:02:56]} 6. Qc2 {[%clk 0:02:59]}  O-O {[%clk 0:02:54]} 7. Nc3 {[%clk 0:02:59]}  dxc4 {[%clk 0:02:51]} 8. Bg2 {[%clk 0:02:59]}  c6 {[%clk 0:02:46]} 9. O-O {[%clk 0:02:45]}  b5 {[%clk 0:02:46]} 10. e4 {[%clk 0:02:35]}  Ba6 {[%clk 0:02:44]} 11. e5 {[%clk 0:02:35]}  Nd5 {[%clk 0:02:43]} 12. Ne4 {[%clk 0:02:36]}  Nd7 {[%clk 0:02:27]} 13. Neg5 {[%clk 0:02:32]}  g6 {[%clk 0:02:25]} 14. h4 {[%clk 0:02:30]}  Nb4 {[%clk 0:01:29]} 15. Bxb4 {[%clk 0:02:18]}  Bxb4 {[%clk 0:01:27]} 16. Nh2 {[%clk 0:02:19]}  Be7 {[%clk 0:01:22]} 17. Bxc6 {[%clk 0:02:17]}  Rc8 {[%clk 0:01:21]} 18. Be4 {[%clk 0:02:08]}  Bxg5 {[%clk 0:01:19]} 19. hxg5 {[%clk 0:02:08]}  Qxg5 {[%clk 0:01:20]} 20. Kg2 {[%clk 0:02:07]}  b4 {[%clk 0:01:19]} 21. Rh1 {[%clk 0:02:06]}  Nb6 {[%clk 0:01:10]} 22. f4 {[%clk 0:02:01]}  Qe7 {[%clk 0:01:03]} 23. Ng4 {[%clk 0:02:01]}  Kg7 {[%clk 0:01:03]} 24. Kf3 {[%clk 0:01:53]}  c3 {[%clk 0:01:01]} 25. Rxh7+ {[%clk 0:01:50]}  Kxh7 {[%clk 0:00:57]} 26. Qh2+ {[%clk 0:01:50]}  Kg8 {[%clk 0:00:57]} 27. Nf6+ {[%clk 0:01:30]}  Qxf6 {[%clk 0:00:52]} 28. exf6 {[%clk 0:01:31]}  Nd7 {[%clk 0:00:51]} 29. Rh1 {[%clk 0:01:31]} 1-0


[Site "https://www.chess.com"]

[Event "Titled Tuesday Blitz November 08 Early 2022"]
[White "Sailer, Mike"]
[Black "Roux, Baptiste"]
[WhiteFideId "2012901"]
[BlackFideId "36017450"]
[WhiteElo "2109"]
[BlackElo "2077"]
[Result "1-0"]
[Round "05"]
[TimeControl "180+1"]
[Date "2022.11.09"]
[WhiteClock "0:00:23"]
[BlackClock "0:00:15"]

1. Nf3 {[%clk 0:02:59]}  g6 {[%clk 0:02:57]} 2. c4 {[%clk 0:02:59]}  Bg7 {[%clk 0:02:57]} 3. Nc3 {[%clk 0:02:59]}  e5 {[%clk 0:02:52]} 4. d4 {[%clk 0:02:53]}  exd4 {[%clk 0:02:51]} 5. Nxd4 {[%clk 0:02:52]}  Nc6 {[%clk 0:02:47]} 6. Nxc6 {[%clk 0:02:50]}  bxc6 {[%clk 0:02:47]} 7. g3 {[%clk 0:02:50]}  Ne7 {[%clk 0:02:47]} 8. Bg2 {[%clk 0:02:50]}  O-O {[%clk 0:02:47]} 9. O-O {[%clk 0:02:51]}  Rb8 {[%clk 0:02:43]} 10. Qc2 {[%clk 0:02:47]}  d6 {[%clk 0:02:37]} 11. b3 {[%clk 0:02:43]}  h6 {[%clk 0:02:27]} 12. Bb2 {[%clk 0:02:43]}  Kh7 {[%clk 0:02:23]} 13. Rad1 {[%clk 0:02:34]}  Bf5 {[%clk 0:02:20]} 14. e4 {[%clk 0:02:33]}  Be6 {[%clk 0:02:14]} 15. h3 {[%clk 0:02:28]}  Qc8 {[%clk 0:02:13]} 16. Kh2 {[%clk 0:02:28]}  f5 {[%clk 0:01:59]} 17. c5 {[%clk 0:02:11]}  fxe4 {[%clk 0:01:50]} 18. Nxe4 {[%clk 0:02:06]}  d5 {[%clk 0:01:41]} 19. Bxg7 {[%clk 0:02:02]}  Kxg7 {[%clk 0:01:42]} 20. Nc3 {[%clk 0:01:52]}  Bf5 {[%clk 0:01:32]} 21. Qb2 {[%clk 0:01:45]}  Kh7 {[%clk 0:01:28]} 22. Ne2 {[%clk 0:01:45]}  Qe8 {[%clk 0:01:17]} 23. Nd4 {[%clk 0:01:38]}  Bd7 {[%clk 0:01:17]} 24. Rde1 {[%clk 0:01:35]}  Qf7 {[%clk 0:01:17]} 25. Re2 {[%clk 0:01:31]}  Rbe8 {[%clk 0:01:13]} 26. Rfe1 {[%clk 0:01:31]}  Nf5 {[%clk 0:01:13]} 27. Nxf5 {[%clk 0:01:11]}  Bxf5 {[%clk 0:01:01]} 28. Rxe8 {[%clk 0:01:07]}  Rxe8 {[%clk 0:01:01]} 29. Rxe8 {[%clk 0:01:07]}  Qxe8 {[%clk 0:01:01]} 30. Qf6 {[%clk 0:01:07]}  Qd7 {[%clk 0:00:57]} 31. h4 {[%clk 0:01:01]}  h5 {[%clk 0:00:54]} 32. Bf3 {[%clk 0:00:55]}  Qg7 {[%clk 0:00:42]} 33. Qxc6 {[%clk 0:00:49]}  Qd4 {[%clk 0:00:37]} 34. Qxc7+ {[%clk 0:00:41]}  Kh8 {[%clk 0:00:35]} 35. Qd8+ {[%clk 0:00:38]}  Kg7 {[%clk 0:00:34]} 36. Qe7+ {[%clk 0:00:37]}  Kh6 {[%clk 0:00:29]} 37. Qe3+ {[%clk 0:00:36]}  Qxe3 {[%clk 0:00:27]} 38. fxe3 {[%clk 0:00:37]}  Be6 {[%clk 0:00:26]} 39. c6 {[%clk 0:00:36]}  Kg7 {[%clk 0:00:26]} 40. c7 {[%clk 0:00:36]}  Kf6 {[%clk 0:00:26]} 41. Bxd5 {[%clk 0:00:36]}  Bc8 {[%clk 0:00:24]} 42. Kg2 {[%clk 0:00:35]}  Ke5 {[%clk 0:00:24]} 43. Bf7 {[%clk 0:00:32]}  Kf6 {[%clk 0:00:22]} 44. Be8 {[%clk 0:00:33]}  Bf5 {[%clk 0:00:14]} 45. Kf3 {[%clk 0:00:30]}  Ke7 {[%clk 0:00:15]} 46. Bc6 {[%clk 0:00:26]}  Kd6 {[%clk 0:00:14]} 47. Be4 {[%clk 0:00:27]}  Bg4+ {[%clk 0:00:14]} 48. Kf4 {[%clk 0:00:27]}  Kxc7 {[%clk 0:00:15]} 49. Bxg6 {[%clk 0:00:27]}  Kb6 {[%clk 0:00:14]} 50. Kg5 {[%clk 0:00:24]}  Kc5 {[%clk 0:00:15]} 51. Bxh5 {[%clk 0:00:24]}  Be6 {[%clk 0:00:14]} 52. Be2 {[%clk 0:00:23]}  Kb4 {[%clk 0:00:14]} 53. h5 {[%clk 0:00:24]}  Ka3 {[%clk 0:00:14]} 54. h6 {[%clk 0:00:19]}  Bg8 {[%clk 0:00:14]} 55. Bd3 {[%clk 0:00:18]}  Kxa2 {[%clk 0:00:14]} 56. h7 {[%clk 0:00:19]}  Bxh7 {[%clk 0:00:13]} 57. Bxh7 {[%clk 0:00:19]}  Kxb3 {[%clk 0:00:14]} 58. e4 {[%clk 0:00:20]}  Kc4 {[%clk 0:00:14]} 59. Kf6 {[%clk 0:00:20]}  a5 {[%clk 0:00:14]} 60. e5 {[%clk 0:00:20]}  a4 {[%clk 0:00:14]} 61. e6 {[%clk 0:00:21]}  a3 {[%clk 0:00:14]} 62. e7 {[%clk 0:00:22]}  a2 {[%clk 0:00:15]} 63. Bg8+ {[%clk 0:00:23]} 1-0


[Site "https://www.chess.com"]

[Event "Titled Tuesday Blitz November 08 Early 2022"]
[White "Samunenkov, Ihor"]
[Black "Jegorovas, Aleksandras"]
[WhiteFideId "14187086"]
[BlackFideId "12801950"]
[WhiteElo "2441"]
[BlackElo "2247"]
[Result "1-0"]
[Round "05"]
[TimeControl "180+1"]
[Date "2022.11.09"]
[WhiteClock "0:00:06"]
[BlackClock "0:00:12"]

1. e4 {[%clk 0:03:00]}  e6 {[%clk 0:02:59]} 2. d4 {[%clk 0:03:00]}  d5 {[%clk 0:02:59]} 3. Nd2 {[%clk 0:03:01]}  Be7 {[%clk 0:02:54]} 4. Bd3 {[%clk 0:02:59]}  c5 {[%clk 0:02:52]} 5. dxc5 {[%clk 0:02:58]}  Nf6 {[%clk 0:02:52]} 6. Qe2 {[%clk 0:02:52]}  a5 {[%clk 0:02:47]} 7. Ngf3 {[%clk 0:02:47]}  O-O {[%clk 0:02:45]} 8. O-O {[%clk 0:02:47]}  Na6 {[%clk 0:02:41]} 9. exd5 {[%clk 0:02:18]}  Qxd5 {[%clk 0:02:32]} 10. Ne4 {[%clk 0:02:12]}  Nxc5 {[%clk 0:02:28]} 11. Nxc5 {[%clk 0:02:01]}  Bxc5 {[%clk 0:02:28]} 12. Bf4 {[%clk 0:02:00]}  b6 {[%clk 0:02:14]} 13. Rad1 {[%clk 0:01:47]}  Qh5 {[%clk 0:02:13]} 14. Ne5 {[%clk 0:01:08]}  Bb7 {[%clk 0:01:43]} 15. Qxh5 {[%clk 0:00:50]}  Nxh5 {[%clk 0:01:42]} 16. Bc1 {[%clk 0:00:43]}  Nf6 {[%clk 0:01:37]} 17. Bb5 {[%clk 0:00:41]}  Rfd8 {[%clk 0:01:36]} 18. Nd3 {[%clk 0:00:35]}  Ne4 {[%clk 0:01:21]} 19. Nxc5 {[%clk 0:00:34]}  Nxc5 {[%clk 0:01:21]} 20. Be3 {[%clk 0:00:34]}  Kf8 {[%clk 0:01:11]} 21. c3 {[%clk 0:00:28]}  Ke7 {[%clk 0:00:40]} 22. Rxd8 {[%clk 0:00:26]}  Rxd8 {[%clk 0:00:38]} 23. b4 {[%clk 0:00:26]}  axb4 {[%clk 0:00:29]} 24. cxb4 {[%clk 0:00:27]}  Nd7 {[%clk 0:00:30]} 25. Bxd7 {[%clk 0:00:21]}  Rxd7 {[%clk 0:00:25]} 26. Bxb6 {[%clk 0:00:22]}  Rd2 {[%clk 0:00:20]} 27. a4 {[%clk 0:00:19]}  Rb2 {[%clk 0:00:19]} 28. b5 {[%clk 0:00:14]}  Ra2 {[%clk 0:00:19]} 29. a5 {[%clk 0:00:14]}  Rb2 {[%clk 0:00:18]} 30. Bc5+ {[%clk 0:00:10]}  Kd7 {[%clk 0:00:18]} 31. a6 {[%clk 0:00:08]}  Bd5 {[%clk 0:00:19]} 32. b6 {[%clk 0:00:06]}  Kc6 {[%clk 0:00:14]} 33. Be3 {[%clk 0:00:06]}  Ra2 {[%clk 0:00:13]} 34. Rc1+ {[%clk 0:00:07]}  Kb5 {[%clk 0:00:12]} 35. b7 {[%clk 0:00:06]} 1-0


[Site "https://www.chess.com"]

[Event "Titled Tuesday Blitz November 08 Early 2022"]
[White "Santos Flores, Alberto"]
[Black "Gareyev, Timur"]
[WhiteFideId "3601234"]
[BlackFideId "14200937"]
[WhiteElo "2235"]
[BlackElo "2552"]
[Result "0-1"]
[Round "05"]
[TimeControl "180+1"]
[Date "2022.11.09"]
[WhiteClock "0:00:01"]
[BlackClock "0:00:08"]

1. d4 {[%clk 0:03:00]}  Nf6 {[%clk 0:02:42]} 2. c4 {[%clk 0:02:56]}  e6 {[%clk 0:02:32]} 3. Nf3 {[%clk 0:02:55]}  b6 {[%clk 0:02:22]} 4. g3 {[%clk 0:02:54]}  Ba6 {[%clk 0:02:18]} 5. b3 {[%clk 0:02:50]}  b5 {[%clk 0:02:15]} 6. cxb5 {[%clk 0:02:37]}  Bxb5 {[%clk 0:02:16]} 7. Bg2 {[%clk 0:02:35]}  Bc6 {[%clk 0:02:16]} 8. O-O {[%clk 0:02:33]}  a5 {[%clk 0:02:14]} 9. Nc3 {[%clk 0:02:24]}  Be7 {[%clk 0:02:06]} 10. Qc2 {[%clk 0:02:12]}  d5 {[%clk 0:02:01]} 11. Ne5 {[%clk 0:02:07]}  Bb7 {[%clk 0:01:58]} 12. Bf4 {[%clk 0:01:57]}  O-O {[%clk 0:01:57]} 13. Na4 {[%clk 0:01:51]}  Na6 {[%clk 0:01:32]} 14. Rfc1 {[%clk 0:01:46]}  Ba3 {[%clk 0:01:30]} 15. Rd1 {[%clk 0:01:38]}  h6 {[%clk 0:01:27]} 16. Nc6 {[%clk 0:01:25]}  Bxc6 {[%clk 0:01:21]} 17. Qxc6 {[%clk 0:01:26]}  Qd7 {[%clk 0:01:21]} 18. Qxd7 {[%clk 0:01:19]}  Nxd7 {[%clk 0:01:22]} 19. e4 {[%clk 0:01:03]}  c6 {[%clk 0:01:13]} 20. Bc1 {[%clk 0:00:55]}  Bb4 {[%clk 0:01:06]} 21. Bb2 {[%clk 0:00:54]}  Rab8 {[%clk 0:00:59]} 22. Rac1 {[%clk 0:00:52]}  Rfc8 {[%clk 0:00:59]} 23. Rc2 {[%clk 0:00:47]}  Bd6 {[%clk 0:00:58]} 24. Bc3 {[%clk 0:00:42]}  Nb4 {[%clk 0:00:55]} 25. Bxb4 {[%clk 0:00:41]}  Bxb4 {[%clk 0:00:54]} 26. Rdc1 {[%clk 0:00:36]}  Ba3 {[%clk 0:00:54]} 27. Rd1 {[%clk 0:00:31]}  Nf6 {[%clk 0:00:53]} 28. f3 {[%clk 0:00:23]}  Kf8 {[%clk 0:00:49]} 29. Kf2 {[%clk 0:00:22]}  Ke8 {[%clk 0:00:48]} 30. Nc5 {[%clk 0:00:19]}  Nd7 {[%clk 0:00:44]} 31. Nxd7 {[%clk 0:00:18]}  Kxd7 {[%clk 0:00:45]} 32. Ke3 {[%clk 0:00:17]}  a4 {[%clk 0:00:45]} 33. bxa4 {[%clk 0:00:16]}  Ra8 {[%clk 0:00:42]} 34. Bf1 {[%clk 0:00:13]}  Rcb8 {[%clk 0:00:26]} 35. exd5 {[%clk 0:00:10]}  exd5 {[%clk 0:00:25]} 36. Rd3 {[%clk 0:00:09]}  Bb4 {[%clk 0:00:22]} 37. Rb3 {[%clk 0:00:09]}  Re8+ {[%clk 0:00:18]} 38. Kd3 {[%clk 0:00:06]}  Rxa4 {[%clk 0:00:19]} 39. Rcb2 {[%clk 0:00:05]}  Bd6 {[%clk 0:00:15]} 40. Be2 {[%clk 0:00:05]}  Ke6 {[%clk 0:00:13]} 41. f4 {[%clk 0:00:03]}  Kf6 {[%clk 0:00:12]} 42. Rb6 {[%clk 0:00:02]}  Ra3+ {[%clk 0:00:11]} 43. R6b3 {[%clk 0:00:02]}  Ra4 {[%clk 0:00:10]} 44. Bf3 {[%clk 0:00:02]}  Re1 {[%clk 0:00:08]} 45. Rb6 {[%clk 0:00:01]}  Rc1 {[%clk 0:00:08]} 0-1


[Site "https://www.chess.com"]